bitfinex/quotes_ETHUSD_20220117
["timestamp","ask_amount","ask_price","bid_price","bid_amount"]
[1642394444500,0.00113684,3266.9,3266.8,5.04180617]
[1642394444751,0.00113684,3266.9,3266.8,8.14180617]
[1642394446151,0.00113684,3266.9,3266.8,3.1]
[1642394446350,0.00113684,3266.9,3266.8,7.54708632]
[1642394447751,0.00113684,3266.9,3266.8,12.09708632]
[1642394448704,0.00113684,3266.9,3266.8,7.54708632]
[1642394449506,0.00113684,3266.9,3266.8,4.44708632]
[1642394449706,0.04751113,3266.8,3266.6,100.00480066]
[1642394450518,0.00113684,3266.9,3266.6,100.00480066]
[1642394450915,0.00113684,3266.9,3266.7,4.54439814]
[1642394451609,0.00113684,3266.9,3266.6,101.53525146]
[1642394451809,0.03836052,3266.8,3266.6,100.00480066]
[1642394452852,0.00113684,3266.9,3266.6,100.00480066]
[1642394454052,0.00113684,3266.9,3266.7,0.0037733]
[1642394454553,0.00113684,3266.9,3266.6,100.00480066]
[1642394454954,0.04348363,3266.8,3266.6,100.00480066]
[1642394455154,0.00113684,3266.9,3266.6,100.00480066]
[1642394456205,0.00113684,3266.9,3266.7,4.61383844]
[1642394456402,0.00113684,3266.9,3266.6,101.53519226]
[1642394456900,0.00113684,3266.9,3266.6,101.62047473]
[1642394457100,0.00113684,3266.9,3266.6,101.53519226]
[1642394457300,0.00113684,3266.9,3266.6,100.00480066]
[1642394457500,0.03624165,3266.8,3266.6,100.00480066]
[1642394457700,0.00113684,3266.9,3266.6,100.00480066]
[1642394458904,0.03208144,3266.8,3266.6,101.53523466]
[1642394459101,0.00113684,3266.9,3266.7,6.15927194]
[1642394459300,0.00113684,3266.9,3266.7,6.15]
[1642394460351,0.00113684,3266.9,3266.7,10.72276457]
[1642394460550,0.00113684,3266.9,3266.8,11.70180855]
[1642394462450,3.3,3267.2,3266.9,0.01549182]
[1642394462651,3.3,3267.2,3266.8,11.70180855]
[1642394462852,0.05119393,3267.0,3266.8,7.1151937]
[1642394463252,3.25113684,3267.2,3266.8,7.1151937]
[1642394463528,3.25113684,3267.2,3266.8,0.7651937]
[1642394463814,0.00113685,3267.1,3266.8,0.7651937]
[1642394464020,0.04112437,3267.1,3266.8,0.7651937]
[1642394464717,0.00113685,3267.1,3266.8,0.7651937]
[1642394465117,0.03321056,3267.0,3266.8,0.7651937]
[1642394465317,0.00113685,3267.1,3266.8,0.7651937]
[1642394465518,0.00467185,3267.0,3266.8,0.7651937]
[1642394465721,0.00113685,3267.1,3266.8,0.7651937]
[1642394465919,0.00434806,3267.0,3266.8,0.7651937]
[1642394466119,0.00113685,3267.1,3267.0,1.07297121]
[1642394466523,0.01458571,3267.0,3266.6,100.00480066]
[1642394466720,0.40558571,3267.0,3266.6,100.00480066]
[1642394466919,0.01190781,3266.9,3266.7,0.00113684]
[1642394467118,0.40558571,3267.0,3266.7,0.00113684]
[1642394467951,0.40558571,3267.0,3266.8,0.03738325]
[1642394468152,0.40558571,3267.0,3266.7,0.00113684]
[1642394468355,0.70558571,3267.0,3266.7,0.00113684]
[1642394468551,0.30791671,3266.9,3266.7,0.00113684]
[1642394468752,0.441,3266.8,3266.7,0.00113684]
[1642394468951,0.5578,3266.8,3266.7,0.00113684]
[1642394469156,0.741,3266.8,3266.7,0.00113684]
[1642394469351,0.8554,3266.8,3266.7,0.00113684]
[1642394469555,0.857,3266.8,3266.7,0.00113684]
[1642394469752,0.861,3266.8,3266.7,0.00113684]
[1642394469952,4.3626,3266.8,3266.7,0.00113684]
[1642394470154,5.3578,3266.8,3266.7,0.00113684]
[1642394470552,5.3634,3266.8,3266.7,1.07751366]
[1642394470753,5.3578,3266.8,3266.7,1.07751366]
[1642394471014,5.3602,3266.8,3266.7,1.07751366]
[1642394471200,5.3594,3266.8,3266.7,1.07751366]
[1642394471400,5.3594,3266.8,3266.7,0.00113684]
[1642394472401,5.3602,3266.8,3266.7,0.00113684]
[1642394472601,5.3594,3266.8,3266.7,0.00113684]
[1642394473205,5.241,3266.8,3266.7,0.00113684]
[1642394473602,4.941,3266.8,3266.7,0.00113684]
[1642394473802,3.941,3266.8,3266.7,0.00113684]
[1642394475070,5.241,3266.8,3266.7,0.00113684]
[1642394478514,5.141,3266.8,3266.7,0.00113684]
[1642394479712,5.441,3266.8,3266.7,0.00113684]
[1642394479906,5.5626,3266.8,3266.7,0.00113684]
[1642394480208,5.5674,3266.8,3266.7,0.00113684]
[1642394480408,5.5642,3266.8,3266.7,0.00113684]
[1642394480610,5.5658,3266.8,3266.7,0.00113684]
[1642394480810,5.5682,3266.8,3266.7,0.00113684]
[1642394481309,5.5674,3266.8,3266.7,0.00113684]
[1642394481512,5.5666,3266.8,3266.7,0.00113684]
[1642394481709,5.5578,3266.8,3266.7,0.00113684]
[1642394481909,5.257,3266.8,3266.7,0.00113684]
[1642394482116,5.441,3266.8,3266.7,0.00113684]
[1642394482349,5.441,3266.8,3266.7,0.00033684]
[1642394482549,8.941,3266.8,3266.7,0.00033684]
[1642394483652,9.0746,3266.8,3266.7,0.00033684]
[1642394483849,14.5902,3266.8,3266.7,0.00033684]
[1642394484048,14.5894,3266.8,3266.7,0.00033684]
[1642394484250,14.5902,3266.8,3266.7,0.00033684]
[1642394484550,14.5894,3266.8,3266.7,0.00033684]
[1642394484755,14.5902,3266.8,3266.7,0.00033684]
[1642394484952,14.5894,3266.8,3266.7,0.00033684]
[1642394485352,14.5926,3266.8,3266.7,0.00033684]
[1642394485552,18.95540609,3266.8,3266.7,0.00033684]
[1642394486299,18.95460609,3266.8,3266.7,0.00033684]
[1642394486902,18.95380609,3266.8,3266.7,0.00033684]
[1642394487307,18.95460609,3266.8,3266.7,0.00033684]
[1642394487504,18.95380609,3266.8,3266.7,0.00033684]
[1642394487806,18.95380609,3266.8,3266.6,88.26895762]
[1642394487807,8.75,3266.7,3266.6,88.26895762]
[1642394488004,16.551,3266.7,3266.6,88.26895762]
[1642394488203,51.5694569,3266.7,3266.6,87.92133959]
[1642394488406,56.2082879,3266.7,3266.6,75.66763959]
[1642394488605,70.5064659,3266.7,3266.6,75.66763959]
[1642394488805,71.75400333,3266.7,3266.6,68.67279293]
[1642394489004,80.93865182,3266.7,3266.6,62.54596293]
[1642394489205,87.25673082,3266.7,3266.6,61.65261713]
[1642394489406,81.15753082,3266.7,3266.6,55.52580713]
[1642394489609,76.09777082,3266.7,3266.6,55.52580713]
[1642394489864,53.21895982,3266.7,3266.6,49.39918713]
[1642394490059,49.01073245,3266.7,3266.6,49.39918713]
[1642394490261,45.77083245,3266.7,3266.6,49.39918713]
[1642394490459,44.84619445,3266.7,3266.6,49.39918713]
[1642394490661,35.65603245,3266.7,3266.6,43.27276713]
[1642394490859,35.65523245,3266.7,3266.6,43.27276713]
[1642394491059,16.43489502,3266.7,3266.6,43.27276713]
[1642394491259,16.43489502,3266.7,3266.6,37.14640713]
[1642394491462,16.44209502,3266.7,3266.6,37.14640713]
[1642394491759,16.44209502,3266.7,3266.6,31.02012713]
[1642394491760,16.43569502,3266.7,3266.6,31.02012713]
[1642394491961,14.08665239,3266.7,3266.6,31.02012713]
[1642394492160,18.60196291,3266.7,3266.6,31.02012713]
[1642394492362,19.74178206,3266.7,3266.6,24.89389713]
[1642394492559,19.74258206,3266.7,3266.6,24.89389713]
[1642394492760,19.7163011,3266.7,3266.6,24.89389713]
[1642394492961,36.25385654,3266.7,3266.6,12.67436146]
[1642394493160,41.70312454,3266.7,3266.6,12.67436146]
[1642394493361,58.26490754,3266.7,3266.6,6.54716146]
[1642394493602,59.68793854,3266.7,3266.6,0.41987146]
[1642394493802,58.21974354,3266.7,3266.6,0.41987146]
[1642394494002,5.56588,3266.6,3266.0,467.01573711]
[1642394494200,5.83360616,3266.1,3266.0,467.01573711]
[1642394494403,6.57460616,3266.1,3266.0,467.01573711]
[1642394494600,11.51860616,3266.1,3266.0,467.01573711]
[1642394494801,11.51780616,3266.1,3266.0,467.01573711]
[1642394495007,11.51700616,3266.1,3266.0,467.01573711]
[1642394495203,15.01940616,3266.1,3266.0,467.01573711]
[1642394495501,15.01460616,3266.1,3266.0,467.01573711]
[1642394495703,15.78367616,3266.1,3266.0,467.01573711]
[1642394495902,15.78527616,3266.1,3266.0,467.01573711]
[1642394496103,38.35851189,3266.1,3266.0,460.88829711]
[1642394496302,33.76447616,3266.1,3266.0,460.88829711]
[1642394496502,33.76687616,3266.1,3266.0,460.88829711]
[1642394496702,45.24316116,3266.1,3266.0,454.76072711]
[1642394496903,50.09901506,3266.1,3266.0,454.76072711]
[1642394497101,26.67042606,3266.1,3266.0,454.76072711]
[1642394497350,44.65042606,3266.1,3266.0,448.63317711]
[1642394497555,54.67491206,3266.1,3266.0,448.63317711]
[1642394497751,46.10457806,3266.1,3266.0,440.56890923]
[1642394497956,46.10457806,3266.1,3266.0,438.94446485]
[1642394497957,177.70630806,3266.1,3266.0,438.94446485]
[1642394498152,192.81036406,3266.1,3266.0,430.07408159]
[1642394498353,206.60831306,3266.1,3266.0,423.94530159]
[1642394498555,200.81760706,3266.1,3266.0,404.69178666]
[1642394498752,200.81760706,3266.1,3266.0,398.56359666]
[1642394498753,200.61855206,3266.1,3266.0,398.56359666]
[1642394498953,188.29287927,3266.1,3266.0,398.56359666]
[1642394499156,137.61890227,3266.1,3266.0,398.56359666]
[1642394499354,50.36755827,3266.1,3266.0,398.56359666]
[1642394499555,33.06595827,3266.1,3266.0,398.56359666]
[1642394499756,38.39635697,3266.1,3266.0,398.56359666]
[1642394499955,38.39795697,3266.1,3266.0,398.56359666]
[1642394500159,56.37715697,3266.1,3266.0,392.43606666]
[1642394500355,59.57495097,3266.1,3266.0,392.43606666]
[1642394500554,40.51832676,3266.1,3266.0,392.43606666]
[1642394500755,31.99493406,3266.1,3266.0,392.43606666]
[1642394501005,31.99413406,3266.1,3266.0,392.43606666]
[1642394501201,31.99653406,3266.1,3266.0,392.43606666]
[1642394501400,31.99253406,3266.1,3266.0,386.30860666]
[1642394501599,31.99333406,3266.1,3266.0,386.30860666]
[1642394501800,35.06687006,3266.1,3266.0,386.30860666]
[1642394502001,31.99893406,3266.1,3266.0,386.30860666]
[1642394502201,31.99173406,3266.1,3266.0,386.30860666]
[1642394502402,31.99733406,3266.1,3266.0,386.30860666]
[1642394502600,34.99653406,3266.1,3266.0,386.30860666]
[1642394502805,34.99733406,3266.1,3266.0,386.30860666]
[1642394503003,34.99573406,3266.1,3266.0,386.30860666]
[1642394503204,33.39013406,3266.1,3266.0,380.71189523]
[1642394503405,32.30167616,3266.1,3266.0,380.71189523]
[1642394503705,32.29927616,3266.1,3266.0,380.71189523]
[1642394503903,32.29207616,3266.1,3266.0,380.71189523]
[1642394504306,32.29847616,3266.1,3266.0,380.71189523]
[1642394504504,32.29047616,3266.1,3266.0,380.71189523]
[1642394504752,32.29207616,3266.1,3266.0,380.71189523]
[1642394504951,32.29127616,3266.1,3266.0,380.71189523]
[1642394505152,33.89127616,3266.1,3266.0,380.71189523]
[1642394505554,33.89047616,3266.1,3266.0,380.71189523]
[1642394505758,33.89127616,3266.1,3266.0,380.71189523]
[1642394505955,33.89047616,3266.1,3266.0,380.71189523]
[1642394506156,33.88967616,3266.1,3266.0,380.71189523]
[1642394506565,33.88727616,3266.1,3266.0,380.71189523]
[1642394506757,33.89367616,3266.1,3266.0,380.71189523]
[1642394506958,33.89447616,3266.1,3266.0,380.71189523]
[1642394507156,33.89527616,3266.1,3266.0,380.71189523]
[1642394507357,33.89607616,3266.1,3266.0,380.71189523]
[1642394507557,33.90247616,3266.1,3266.0,380.71189523]
[1642394508061,33.90327616,3266.1,3266.0,380.71189523]
[1642394508356,26.90247616,3266.1,3266.0,380.71189523]
[1642394508608,26.90567616,3266.1,3266.0,380.71189523]
[1642394508803,26.89847616,3266.1,3266.0,380.71189523]
[1642394509005,26.89927616,3266.1,3266.0,380.71189523]
[1642394509202,26.90087616,3266.1,3266.0,380.71189523]
[1642394509402,26.90487616,3266.1,3266.0,380.71189523]
[1642394509603,26.90647616,3266.1,3266.0,380.71189523]
[1642394509804,26.90087616,3266.1,3266.0,380.71189523]
[1642394510102,26.90807616,3266.1,3266.0,380.71189523]
[1642394510302,26.90007616,3266.1,3266.0,380.71189523]
[1642394510505,26.90567616,3266.1,3266.0,380.71189523]
[1642394510806,26.89847616,3266.1,3266.0,380.71189523]
[1642394511002,26.90247616,3266.1,3266.0,380.71189523]
[1642394511201,26.90407616,3266.1,3266.0,380.71189523]
[1642394511403,26.90327616,3266.1,3266.0,380.71189523]
[1642394511603,24.53660616,3266.1,3266.0,380.71189523]
[1642394511803,24.52060616,3266.1,3266.0,380.71189523]
[1642394512352,24.39820616,3266.1,3266.0,380.71189523]
[1642394512552,24.52140616,3266.1,3266.0,380.71189523]
[1642394512753,24.52220616,3266.1,3266.0,380.71189523]
[1642394512951,26.12140616,3266.1,3266.0,380.71189523]
[1642394513356,26.11820616,3266.1,3266.0,380.71189523]
[1642394513552,26.11980616,3266.1,3266.0,380.71189523]
[1642394514054,18.5646,3266.1,3266.0,380.71189523]
[1642394515352,18.8646,3266.1,3266.0,380.71189523]
[1642394516016,20.1646,3266.1,3266.0,380.71189523]
[1642394517604,18.8646,3266.1,3266.0,380.71189523]
[1642394517803,19.8646,3266.1,3266.0,380.71189523]
[1642394521757,19.9862,3266.1,3266.0,380.71189523]
[1642394521960,19.987,3266.1,3266.0,380.71189523]
[1642394522158,19.9854,3266.1,3266.0,380.71189523]
[1642394522560,19.9862,3266.1,3266.0,380.71189523]
[1642394523058,19.9854,3266.1,3266.0,380.71189523]
[1642394523357,19.9846,3266.1,3266.0,380.71189523]
[1642394523604,20.2846,3266.1,3266.0,380.71189523]
[1642394524002,20.287,3266.1,3266.0,380.71189523]
[1642394524207,20.2846,3266.1,3266.0,380.71189523]
[1642394524808,20.2854,3266.1,3266.0,380.71189523]
[1642394525005,20.287,3266.1,3266.0,380.71189523]
[1642394525904,23.26980205,3266.1,3266.0,380.71189523]
[1642394526310,23.26900205,3266.1,3266.0,380.71189523]
[1642394526505,23.26980205,3266.1,3266.0,380.71189523]
[1642394526707,23.27140205,3266.1,3266.0,380.71189523]
[1642394526908,23.27220205,3266.1,3266.0,380.71189523]
[1642394527361,23.26980205,3266.1,3266.0,380.71189523]
[1642394527961,23.27220205,3266.1,3266.0,380.71189523]
[1642394528362,23.27300205,3266.1,3266.0,380.71189523]
[1642394528762,23.27140205,3266.1,3266.0,380.71189523]
[1642394528965,23.27220205,3266.1,3266.0,380.71189523]
[1642394529162,23.27300205,3266.1,3266.0,380.71189523]
[1642394529561,23.27540205,3266.1,3266.0,380.71189523]
[1642394529762,23.27380205,3266.1,3266.0,380.71189523]
[1642394529963,23.27220205,3266.1,3266.0,380.56189523]
[1642394530665,23.27300205,3266.1,3266.0,380.56189523]
[1642394530863,23.27220205,3266.1,3266.0,380.56189523]
[1642394531103,23.27540205,3266.1,3266.0,380.56189523]
[1642394531305,23.27620205,3266.1,3266.0,380.56189523]
[1642394531507,23.27700205,3266.1,3266.0,380.56189523]
[1642394531704,23.27620205,3266.1,3266.0,380.56189523]
[1642394531903,23.27700205,3266.1,3266.0,380.56189523]
[1642394532103,23.27620205,3266.1,3266.0,380.56189523]
[1642394532304,23.27540205,3266.1,3266.0,380.56189523]
[1642394532509,23.27860205,3266.1,3266.0,380.56189523]
[1642394532710,23.27460205,3266.1,3266.0,380.56189523]
[1642394532916,23.28580205,3266.1,3266.0,380.56189523]
[1642394533105,23.28900205,3266.1,3266.0,380.56189523]
[1642394533708,23.28980205,3266.1,3266.0,380.56189523]
[1642394533908,23.28900205,3266.1,3266.0,380.56189523]
[1642394534113,23.28980205,3266.1,3266.0,380.56189523]
[1642394534309,23.28980205,3266.1,3266.0,374.43446523]
[1642394534310,23.30020205,3266.1,3266.0,374.43446523]
[1642394534509,31.21043024,3266.1,3266.0,374.43446523]
[1642394534750,31.20883024,3266.1,3266.0,368.30685523]
[1642394535054,31.20243024,3266.1,3266.0,368.30685523]
[1642394535256,31.20883024,3266.1,3266.0,362.17936523]
[1642394535452,31.20963024,3266.1,3266.0,362.17936523]
[1642394535653,31.28848814,3266.1,3266.0,362.17936523]
[1642394535849,31.29088814,3266.1,3266.0,356.05148523]
[1642394536062,31.29648814,3266.1,3266.0,356.05148523]
[1642394536251,31.28928814,3266.1,3266.0,356.05148523]
[1642394536450,31.28608814,3266.1,3266.0,349.92368523]
[1642394536655,58.09205314,3266.1,3266.0,349.92368523]
[1642394536853,60.85570914,3266.1,3266.0,331.68875197]
[1642394537054,61.35133705,3266.1,3266.0,328.29645868]
[1642394537254,67.60728305,3266.1,3266.0,314.44727704]
[1642394537551,67.60728305,3266.1,3266.0,300.47955516]
[1642394537552,60.93237305,3266.1,3266.0,300.47955516]
[1642394537752,58.63575005,3266.1,3266.0,300.47955516]
[1642394537952,35.95059805,3266.1,3266.0,300.47955516]
[1642394538152,56.18196605,3266.1,3266.0,300.47955516]
[1642394538353,56.10762905,3266.1,3266.0,300.47955516]
[1642394538611,53.85663405,3266.1,3266.0,300.47955516]
[1642394538814,53.86303405,3266.1,3266.0,294.35198516]
[1642394539017,61.47014505,3266.1,3266.0,294.35198516]
[1642394539215,58.40690705,3266.1,3266.0,294.35198516]
[1642394539416,55.88208105,3266.1,3266.0,288.22448516]
[1642394539711,53.85743405,3266.1,3266.0,288.22448516]
[1642394539914,58.40683405,3266.1,3266.0,282.09683516]
[1642394540111,59.47401305,3266.1,3266.0,282.09683516]
[1642394540311,59.47401305,3266.1,3266.0,262.55022226]
[1642394540312,69.80695505,3266.1,3266.0,262.55022226]
[1642394540514,81.82517867,3266.1,3266.0,249.05826957]
[1642394540713,80.25639067,3266.1,3266.0,248.87077688]
[1642394540912,90.56764167,3266.1,3266.0,230.48398688]
[1642394541112,87.75202567,3266.1,3266.0,229.92150881]
[1642394541314,81.65040667,3266.1,3266.0,229.92150881]
[1642394541514,70.57711905,3266.1,3266.0,223.79352881]
[1642394541716,78.31593205,3266.1,3266.0,223.79352881]
[1642394541914,77.13526505,3266.1,3266.0,223.79352881]
[1642394542112,78.12115405,3266.1,3266.0,217.66571881]
[1642394542359,78.64445405,3266.1,3266.0,217.66571881]
[1642394542557,78.48206005,3266.1,3266.0,211.53779881]
[1642394542756,74.44518805,3266.1,3266.0,211.53779881]
[1642394543158,74.44118805,3266.1,3266.0,205.41002881]
[1642394543557,78.93158505,3266.1,3266.0,199.28189881]
[1642394544262,78.93158505,3266.1,3266.0,193.15391881]
[1642394544263,56.92849435,3266.1,3266.0,193.15391881]
[1642394544458,53.84751235,3266.1,3266.0,193.15391881]
[1642394544659,68.80478535,3266.1,3266.0,187.02610881]
[1642394544862,68.80478535,3266.1,3266.0,180.02988126]
[1642394544863,74.12794403,3266.1,3266.0,180.02988126]
[1642394545061,71.67203537,3266.1,3266.0,179.98627129]
[1642394545260,71.56625737,3266.1,3266.0,173.85828129]
[1642394545461,74.57185737,3266.1,3266.0,173.85828129]
[1642394545659,83.24256437,3266.1,3266.0,173.85828129]
[1642394545860,83.30489037,3266.1,3266.0,167.73038129]
[1642394546100,80.70387337,3266.1,3266.0,167.73038129]
[1642394546303,84.38773337,3266.1,3266.0,161.60208129]
[1642394546503,84.38613337,3266.1,3266.0,161.60208129]
[1642394546700,65.02254737,3266.1,3266.0,161.60208129]
[1642394546904,85.84303837,3266.1,3266.0,161.60208129]
[1642394547104,85.83743837,3266.1,3266.0,161.60208129]
[1642394547303,87.12062737,3266.1,3266.0,161.60208129]
[1642394547504,87.12143237,3266.1,3266.0,155.47431129]
[1642394547801,210.98924916,3266.1,3266.0,58.5713122]
[1642394548001,250.53327016,3266.1,3266.0,51.7079222]
[1642394548200,227.28346816,3266.1,3266.0,50.7079222]
[1642394548401,234.09133416,3266.1,3266.0,38.4491022]
[1642394548600,234.09133416,3266.1,3266.0,32.3197122]
[1642394548601,227.72704216,3266.1,3266.0,32.3197122]
[1642394548800,223.39787352,3266.1,3266.0,32.3197122]
[1642394549107,228.51765018,3266.1,3266.0,26.1903822]
[1642394549307,225.07808418,3266.1,3266.0,11.0610522]
[1642394549605,225.40258018,3266.1,3266.0,11.0610522]
[1642394549864,225.40258018,3266.1,3266.0,4.3000949]
[1642394549865,225.92270118,3266.1,3266.0,4.3000949]
[1642394550066,0.76617,3265.6,3264.3,1.1338]
[1642394550267,5.51,3264.4,3264.3,1.1338]
[1642394550472,5.51,3264.4,3263.1,3.58346566]
[1642394550473,8.90859802,3264.4,3263.1,3.58346566]
[1642394550665,5.51,3264.1,3263.2,1.1348]
[1642394550866,0.441,3264.0,3263.2,1.92085442]
[1642394551165,1.441,3264.0,3263.9,1.34595249]
[1642394551364,1.441,3264.0,3263.2,1.92085442]
[1642394551566,0.01961924,3263.9,3263.2,1.1348]
[1642394551765,0.441,3263.8,3263.2,1.1348]
[1642394552169,0.741,3263.8,3263.2,1.1348]
[1642394552368,11.69843974,3263.7,3263.2,1.1348]
[1642394552566,1.441,3263.6,3263.2,2.45191421]
[1642394552765,1.5698,3263.6,3263.2,1.31711421]
[1642394552965,0.1176,3263.5,3263.2,1.31711421]
[1642394553266,0.441,3263.4,3263.2,1.31711421]
[1642394553534,0.441,3263.3,3263.2,14.21711421]
[1642394553718,1.124,3264.0,3263.4,19.0]
[1642394553916,0.44659503,3263.9,3263.4,19.0]
[1642394554114,0.441,3263.9,3263.4,19.0]
[1642394554315,5.93957042,3264.3,3263.5,14.3142282]
[1642394554515,5.93957042,3264.3,3263.5,14.3]
[1642394554516,0.441,3264.3,3263.5,14.3]
[1642394554719,0.441,3264.3,3263.6,0.01762113]
[1642394554916,0.441,3264.3,3263.8,0.02802959]
[1642394555316,0.441,3264.3,3263.9,0.01591586]
[1642394555616,0.441,3264.3,3264.2,2.35133501]
[1642394556017,0.441,3264.3,3264.2,1.3655456]
[1642394560757,0.441,3264.3,3264.2,1.21862802]
[1642394562706,3.441,3264.3,3264.2,1.21862802]
[1642394563106,4.741,3264.3,3264.2,1.21862802]
[1642394563307,3.741,3264.3,3264.2,1.21862802]
[1642394563512,3.741,3264.3,3264.2,9.81862802]
[1642394563513,3.441,3264.3,3264.2,9.81862802]
[1642394564011,3.0,3264.3,3264.2,9.81862802]
[1642394564858,3.3,3264.3,3264.2,9.81862802]
[1642394567564,0.3,3264.3,3264.2,9.81862802]
[1642394568705,0.3,3264.3,3264.2,1.21862802]
[1642394569405,0.3,3264.3,3264.2,8.66862802]
[1642394569907,0.3,3264.3,3264.2,1.21862802]
[1642394575371,0.3,3264.3,3264.2,16.06862802]
[1642394576903,0.3,3264.3,3264.2,1.21862802]
[1642394577308,0.3,3264.3,3264.2,8.71862802]
[1642394578306,0.3,3264.3,3264.2,13.61862802]
[1642394579208,0.3,3264.3,3264.2,18.21862802]
[1642394579856,0.3,3264.3,3264.2,13.61862802]
[1642394580061,0.3,3264.3,3264.2,8.71862802]
[1642394580857,0.3,3264.3,3264.2,1.21862802]
[1642394582354,0.3,3264.3,3264.2,5.11862802]
[1642394582756,0.3,3264.3,3264.2,1.21862802]
[1642394583156,0.3,3264.3,3264.2,5.41862802]
[1642394584010,0.3,3264.3,3264.2,1.21862802]
[1642394584706,0.741,3264.3,3264.2,1.21862802]
[1642394584907,1.041,3264.3,3264.2,1.21862802]
[1642394585512,1.341,3264.3,3264.2,1.21862802]
[1642394585908,1.341,3264.3,3264.2,1.20441743]
[1642394587114,1.341,3264.3,3264.2,5.50441743]
[1642394587368,1.041,3264.3,3264.2,5.50441743]
[1642394590167,1.041,3264.3,3264.2,10.75441743]
[1642394591529,0.3,3264.3,3264.2,10.75441743]
[1642394591828,10.1457,3265.2,3264.2,10.75441743]
[1642394591829,0.441,3264.9,3264.3,13.3]
[1642394592227,0.441,3264.9,3264.4,0.01307374]
[1642394592627,0.441,3264.9,3264.5,0.84525466]
[1642394592827,6.18,3265.2,3264.6,21.5]
[1642394593041,6.18,3265.5,3264.8,0.01233548]
[1642394593428,6.18,3265.5,3264.9,0.01023163]
[1642394593829,6.18,3265.5,3265.0,1.14361234]
[1642394594029,3.0,3265.2,3265.0,1.14361234]
[1642394594230,3.0,3265.2,3265.1,8.7975268]
[1642394595459,3.0,3265.2,3265.1,1.3975268]
[1642394596061,3.0,3265.2,3265.1,5.6975268]
[1642394597263,3.0,3265.2,3265.1,1.3975268]
[1642394598062,3.0,3265.2,3265.1,14.3975268]
[1642394598535,3.0,3265.2,3265.1,15.29379756]
[1642394599014,3.0,3265.2,3265.1,6.59379756]
[1642394600016,3.0,3265.2,3265.1,2.29379756]
[1642394600616,3.3,3265.2,3265.1,2.29379756]
[1642394607113,6.18,3265.5,3265.2,13.0]
[1642394607309,9.8752,3266.1,3265.2,13.0]
[1642394607507,9.8752,3266.1,3265.3,0.00795793]
[1642394608105,9.8752,3266.1,3265.8,0.91783733]
[1642394608309,6.1236,3266.1,3265.9,1.08829836]
[1642394608507,6.1236,3266.1,3265.9,1.09284575]
[1642394608814,6.1236,3266.1,3266.0,0.00397897]
[1642394609607,6.4236,3266.1,3266.0,0.00397897]
[1642394609862,7.7236,3266.1,3266.0,0.00397897]
[1642394610258,7.7236,3266.1,3265.4,0.00738951]
[1642394610458,1.00541306,3266.0,3265.4,0.00738951]
[1642394610659,0.03660822,3265.9,3265.4,0.00738951]
[1642394611059,1.0,3266.0,3265.4,0.00738951]
[1642394611261,1.0,3266.0,3265.4,1.28510055]
[1642394611463,0.95,3266.0,3265.4,1.28510055]
[1642394611663,0.95,3266.0,3265.5,0.00682108]
[1642394611964,0.00904021,3265.9,3265.5,0.00682108]
[1642394612159,0.95,3266.0,3265.5,0.00682108]
[1642394612362,6.24507004,3266.0,3265.5,0.00682108]
[1642394612559,0.95,3266.0,3265.5,0.00682108]
[1642394613361,0.95,3266.0,3265.6,0.05215034]
[1642394613608,0.95,3266.0,3265.5,0.00682108]
[1642394613808,0.95,3266.0,3265.7,0.00568424]
[1642394614010,0.95,3266.0,3265.5,0.00682108]
[1642394614209,6.8646,3266.1,3265.5,0.00682108]
[1642394614409,1.0,3266.0,3265.5,0.00682108]
[1642394614808,1.0,3266.0,3265.4,0.00738951]
[1642394615008,1.0,3266.0,3265.5,0.04277629]
[1642394615408,0.03660822,3265.9,3265.6,0.00625266]
[1642394615609,4.0,3266.0,3265.7,1.13496148]
[1642394616008,4.0,3266.0,3265.8,0.00511581]
[1642394616809,3.0,3266.0,3265.8,0.00511581]
[1642394617014,6.8646,3266.1,3265.8,0.00511581]
[1642394617015,2.1567,3266.1,3265.9,22.72253221]
[1642394617282,2.1567,3266.1,3265.9,23.75153221]
[1642394617482,2.1567,3266.1,3266.0,16.55397897]
[1642394620584,2.4567,3266.1,3266.0,16.55397897]
[1642394623215,2.1567,3266.1,3266.0,16.55397897]
[1642394625461,5.1567,3266.1,3266.0,25.55397897]
[1642394626060,5.1567,3266.1,3266.0,43.53397897]
[1642394626461,2.1567,3266.1,3266.0,43.53397897]
[1642394626861,2.1567,3266.1,3266.0,52.53397897]
[1642394627064,1e-08,3266.1,3266.0,52.53397897]
[1642394627261,1e-08,3266.1,3266.0,34.55397897]
[1642394634066,1e-08,3266.1,3266.0,18.00397897]
[1642394641368,1e-08,3266.1,3266.0,35.98397897]
[1642394641574,1e-08,3266.1,3266.0,18.00397897]
[1642394641970,1e-08,3266.1,3266.0,23.67046917]
[1642394642171,6.18,3267.1,3266.2,0.76514]
[1642394642374,6.18,3267.1,3266.5,17.98]
[1642394642571,0.00170527,3267.0,3266.6,19.04462666]
[1642394642900,6.13170527,3267.1,3266.8,1.12939277]
[1642394643073,4.81166992,3268.1,3266.8,19.10939277]
[1642394643074,6.18,3267.5,3266.8,19.10939277]
[1642394643370,6.48,3267.5,3266.8,19.10939277]
[1642394643612,6.18,3267.5,3266.8,19.10939277]
[1642394643812,6.18,3267.5,3267.3,1.02684839]
[1642394644015,6.18,3267.5,3266.8,19.10939277]
[1642394644212,0.02305275,3267.4,3266.8,24.59078975]
[1642394644413,6.18,3267.5,3267.3,1.17562161]
[1642394645013,6.48,3267.5,3267.3,1.17562161]
[1642394645816,0.03660822,3267.4,3266.7,5.40617994]
[1642394646214,0.00170527,3267.3,3266.9,0.03505006]
[1642394646414,0.00170527,3267.3,3266.8,0.00113685]
[1642394646415,0.01345731,3267.2,3266.8,0.00113685]
[1642394646614,0.01459415,3267.2,3266.8,0.00113685]
[1642394647014,0.00113684,3267.2,3266.8,0.00113685]
[1642394647664,0.00113684,3267.2,3266.8,1.24537441]
[1642394648263,0.00113684,3267.2,3266.8,0.00113685]
[1642394648566,0.03660822,3267.1,3266.8,0.00113685]
[1642394648763,0.00113684,3267.2,3266.8,0.00113685]
[1642394648962,0.00113684,3267.2,3266.1,1.23841581]
[1642394649163,5.85569166,3267.2,3266.2,0.00454739]
[1642394649364,6.15569166,3267.2,3266.4,1.08547585]
[1642394649564,1.0,3267.1,3266.4,1.08547585]
[1642394649764,1.0,3267.1,3266.5,0.00284212]
[1642394649963,0.60113684,3267.2,3266.5,0.00284212]
[1642394650166,0.30113684,3267.2,3266.5,0.00284212]
[1642394650668,0.00585425,3267.1,3266.5,0.00284212]
[1642394650864,0.00113684,3267.2,3266.6,0.02335469]